Cogmind - Beta 11.1 @@@ ROGUE MODE // 2022.09.23 @ 16:29:26 Player: MAC-Bot 2145 Result: Destroyed by H-66 Slayer with Heavy Assault Rifle Performance ------------- Evolutions (4) 2000 Regions Visited (7) 1400 Robots Destroyed (57) 285 Value Destroyed (1957) 1957 Prototype IDs (3) 60 Alien Tech Used (0) 0 Bonus (150) 150 TOTAL SCORE: 5852 Bonus ------- High Alert Combat Kills 149 Follower Combat Kills 115 Friendly Fire -114 Cogmind --------- Core Integrity 0/850 Matter 206/300 Energy 100/100 System Corruption 0% Temperature Cool (0) Movement Core (1400) Ox27 Location -6/Factory Parts ------- > --- POWER (2) -------- (None) > --- PROPULSION (4) --- (None) > --- UTILITY (7) ------ Huge Storage Unit Improved Signal Interpreter > --- WEAPON (2) ------- Heavy Laser > --- INVENTORY (25) --- High-capacity Storage Unit Huge Storage Unit Machine Analyzer Improved Sensor Array Terrain Scanner Melee Analysis Suite Shield Generator Authchip [Propulsion] Improved Component Analysis Suite Pulse Rifle Mining Laser Hammer Heavy Flail Peak State ------------ > --- POWER ------------ Light Nuclear Core Light Nuclear Core > --- PROPULSION ------- Wheel Armored Wheel Armored Huge Wheel > --- UTILITY ---------- Huge Storage Unit Improved Signal Interpreter Microactuators Force Booster Improved Light Armor Plating > --- WEAPON ----------- Mini Grenade Launcher Heavy Flail > --- INVENTORY -------- Titanium Leg Titanium Leg Titanium Leg Wheel High-capacity Storage Unit Huge Storage Unit Machine Analyzer Improved Sensor Array Terrain Scanner Melee Analysis Suite Actuator Array Core Shielding Shield Generator Authchip [Propulsion] Improved Component Analysis Suite Heavy EM Shotgun Pulse Rifle Ion Cannon Light Cannon Advanced EMP Blaster Advanced EMP Blaster Mining Laser Hammer Maul Axe [Rating: 43] Favorites ----------- Power Ion Engine Engine Ion Engine Power Core Light Nuclear Core Propulsion Armored Wheel Treads Light Treads Leg Titanium Leg Wheel Armored Wheel Hover Unit Improved Hover Unit Flight Unit VTOL Module Utility Huge Storage Unit Device Shield Generator Storage Huge Storage Unit Processor Improved Signal Interpreter Hackware System Shield Protection Medium Armor Plating Weapon Small Laser Energy Gun Small Laser Energy Cannon Ion Cannon Ballistic Cannon Light Cannon Launcher Mini Grenade Launcher Special Weapon Mining Laser Impact Weapon Maul Slashing Weapon Axe Build | -11 -10 -9 -9 -8 -8 -7 -6 ------- Run | Scr Mat Mat Min Mat Sto Fac Fac Slots Evolved 8 | . . 2 . 2 . 2 2 Power 1 | . . . . 1 . . . Propulsion 2 | . . 1 . 1 . . . Utility 5 | . . 1 . . . 2 2 Weapon . | . . . . . . . . Parts Attached 107 | 5 21 3 4 15 26 21 12 Power 11 | . 3 . . 2 4 2 . Engine 6 | . 3 . . 2 1 . . Core 5 | . . . . . 3 2 . Reactor . | . . . . . . . . Propulsion 37 | 2 14 1 . 4 2 12 2 Treads 2 | . 2 . . . . . . Leg 9 | . . . . . . 7 2 Wheel 21 | 2 7 1 . 4 2 5 . Hover 3 | . 3 . . . . . . Flight 2 | . 2 . . . . . . Utility 32 | 1 3 2 1 7 10 6 2 Device 13 | . . 1 1 3 3 5 . Storage 4 | 1 1 . . 2 . . . Processor 1 | . . . . . . 1 . Hackware 1 | . . . . . 1 . . Protection 13 | . 2 1 . 2 6 . 2 Artifact . | . . . . . . . . Weapon 27 | 2 1 . 3 2 10 1 8 Energy Gun 7 | 2 1 . 1 . 1 . 2 Energy Cannon 1 | . . . . . . . 1 Ballistic Gun . | . . . . . . . . Ballistic Cannon 3 | . . . 1 . 1 . 1 Launcher 8 | . . . . . 5 . 3 Special Weapon 1 | . . . 1 . . . . Impact Weapon 5 | . . . . 2 2 . 1 Slashing Weapon 2 | . . . . . 1 1 . Piercing Weapon . | . . . . . . . . Special Melee Weapon . | . . . . . . . . Unidentified Prototypes 3 | . 1 . . . 2 . . Corrupted Parts 2 | . . . . . 2 . . System Corruption 8 | . . . . . 8 . . Parts Lost 40 | . 2 . 3 . 10 9 16 Power 6 | . . . 1 . 1 4 . Propulsion 11 | . 1 . . . 3 3 4 Utility 13 | . 1 . 1 . 5 1 5 Weapon 10 | . . . 1 . 1 1 7 Highest Loss Streak 16 | . 1 . 2 . 5 3 16 To Critical Strikes . | . . . . . . . . Average Slot Usage (%) 88 | . 93 98 98 96 92 86 35 Engine 10 | . 12 11 10 18 12 . . Core 3 | . . . . . 4 12 . Wheel 27 | . 26 33 33 34 31 19 . Device 7 | . . 10 10 7 4 17 5 Storage 9 | . 14 11 11 9 9 7 6 Processor 1 | . . . . . . 7 6 Protection 8 | . 10 11 11 8 9 4 1 Energy Gun 6 | . 28 22 10 . . . 3 Ballistic Cannon 3 | . . . 8 9 1 . . Launcher 3 | . . . . . 7 7 2 Impact Weapon 4 | . . . . 8 6 5 2 Slashing Weapon 1 | . . . . . 3 1 . Naked Turns . | . . . . . . . . Heaviest Build 112 | 7 98 100 95 105 112 106 96 Greatest Support 61 | 20 24 36 36 48 48 51 61 Greatest Overweight (x) 27 | . 9 2 2 2 7 9 27 Average Overweight (x) 2 | . 2 2 2 1 2 2 15 Largest Inventory Capacity 25 | 8 25 25 25 25 25 25 25 Average Capacity 23 | 7 20 25 25 24 25 25 25 Most Carried 25 | 5 25 24 23 25 25 25 24 Average Carried 20 | 2 15 19 20 20 22 23 15 Final Capacity 25 | 8 25 25 25 25 25 25 25 Final Carried 25 | 5 25 20 23 20 20 24 13 Class Distribution -------------------- 95% | Mutant 4% | Assassin Dominant Class ---------------- Mutant | -10/Materials Mutant | -9/Materials Mutant | -9/Mines Mutant | -8/Materials Mutant | -8/Storage Mutant | -7/Factory Mutant | -6/Factory Resources | -11 -10 -9 -9 -8 -8 -7 -6 ----------- Run | Scr Mat Mat Min Mat Sto Fac Fac Matter Collected 1411 | 222 185 . 189 78 411 214 112 Remotely . | . . . . . . . . Salvage Created 1752 | . 254 . 81 110 981 214 112 Parts 79 | . 15 . 1 6 53 4 . Haulers Intercepted . | . . . . . . . . Recyclers Shooed 2 | . . . 1 . 1 . . Parts Field Recycled . | . . . . . . . . Retrieved Matter . | . . . . . . . . Parts Self-Destructed . | . . . . . . . . Prevented . | . . . . . . . . Kills | -11 -10 -9 -9 -8 -8 -7 -6 ------- Run | Scr Mat Mat Min Mat Sto Fac Fac Combat Hostiles Destroyed 47 | . 5 . 3 7 25 4 3 Melee 9 | . . . . 3 4 2 . Guns 5 | . 4 . . . . . 1 Cannons 4 | . . . 3 . . . 1 AOE 20 | . 1 . . . 19 . . Classes Destroyed 12 | . 4 . 1 1 6 . . Worker 3 | . 1 . . 1 1 . . Builder 3 | . 1 . . . 2 . . Tunneler 1 | . 1 . . . . . . Operator 2 | . . . . . 2 . . Watcher 2 | . . . . . 2 . . Swarmer 11 | . . . . 7 4 . . Grunt 24 | . 5 . 2 . 12 2 3 Brawler 1 | . . . . . 1 . . Duelist 3 | . . . . . 2 1 . Sentry 5 | . . . . . 4 1 . Hunter 2 | . . . . . 2 . . Assembled 1 | . . . 1 . . . . Best Kill Streak 16 | . 3 . 2 4 16 2 2 Combat Bots Only 9 | . 3 . 2 4 9 2 2 Max Kills in Single Turn 4 | . 3 . 1 1 4 1 1 Gunslinging . | . . . . . . . . Exploded 3 | . 1 . . . 3 . . Melee 1 | . . . . 1 1 1 . Uniques/NPCs Destroyed . | . . . . . . . . Combat | -11 -10 -9 -9 -8 -8 -7 -6 -------- Run | Scr Mat Mat Min Mat Sto Fac Fac Damage Taken 5885 | . 473 10 266 167 1407 1314 2248 Core 1458 | . 121 10 40 6 160 265 856 Absorbed by Shields 137 | . . . . 74 63 . . Redirected to Shielding 30 | . . . . . . . 30 Regen/Repaired (Parts) 738 | . . . . 561 177 . . Core Remaining (%) 73 | 100 51 . 87 . 69 62 . Volleys Fired 114 | . 28 . 31 . 32 . 23 Largest 2 | . 2 . 2 . 1 . 1 Hottest 100 | . 80 . 100 . 36 . 69 Shots Fired 155 | . 58 . 42 . 32 . 23 Gun 81 | . 58 . 12 . . . 11 Cannon 17 | . . . 10 . . . 7 Launcher 37 | . . . . . 32 . 5 Special 20 | . . . 20 . . . . Kinetic 12 | . . . 10 . . . 2 Thermal 90 | . 45 . 31 . . . 14 Explosive 22 | . . . . . 19 . 3 Electromagnetic 31 | . 13 . 1 . 13 . 4 Robot Hit Streak 10 | . 7 . 2 . 10 . 7 Robot Miss Streak 3 | . 3 . 2 . 2 . 2 Penetration Max . | . . . . . . . . Secondary Targets . | . . . . . . . . Shots Hit Robots 116 | . 23 . 9 9 41 18 16 Core Hits 75 | . 14 . 4 2 41 4 10 Critical Kills 3 | . . . . 2 1 . . Critical Parts Destroyed 3 | . . . . 2 1 . . Critical Strikes 13 | . 2 . 2 4 3 1 1 Burn 1 | . . . . . . . 1 Blast 2 | . . . 2 . . . . Corrupt 2 | . 2 . . . . . . Smash 6 | . . . . 4 2 . . Sever 2 | . . . . . 1 1 . Melee Attacks 89 | . . . . 14 37 38 . Impact 77 | . . . . 14 32 31 . Slashing 12 | . . . . . 5 7 . Piercing . | . . . . . . . . Sneak Attacks 3 | . . . . 1 2 . . Combat Hostiles . | . . . . . . . . Follow-up Attacks . | . . . . . . . . Damage Inflicted 5790 | . 491 . 236 373 3274 869 547 Guns 508 | . 272 . 47 . . . 189 Cannons 175 | . . . 105 . . . 70 Explosions 2992 | . 176 . . . 2528 . 288 Melee 1988 | . . . . 373 746 869 . Ramming 79 | . 43 . 36 . . . . Kinetic 105 | . . . 105 . . . . Thermal 872 | . 238 . 95 . 320 . 219 Explosive 1457 | . . . . . 1169 . 288 Electromagnetic 1289 | . 210 . . . 1039 . 40 Impact 1669 | . . . . 373 649 647 . Slashing 319 | . . . . . 97 222 . Piercing . | . . . . . . . . Highest Corruption 9 | . 4 . 4 . 9 . . Average Corruption 3 | . 4 . 4 . 3 . . Corruption Purged . | . . . . . . . . Corruption Blocked . | . . . . . . . . Effects 18 | . 7 . 1 . 10 . . Message Errors 6 | . . . . . 6 . . Matter Fused 4 | . 3 . . . 1 . . Heat Flow Errors 2 | . . . . . 2 . . Data Loss (minor) 2 | . . . 1 . 1 . . Data Loss (major) 1 | . 1 . . . . . . Misfires 2 | . 2 . . . . . . Alerts 1 | . 1 . . . . . . Overload Shots . | . . . . . . . . Overflow Damage 564 | . 13 . 24 133 221 173 . Projectiles 6 | . . . 6 . . . . Explosions 38 | . . . . . 38 . . Melee 520 | . 13 . 18 133 183 173 . Knockbacks 3 | . . . 1 . 1 1 . Impact 3 | . . . 1 . 1 1 . Kinetic . | . . . . . . . . Secondary . | . . . . . . . . Self-Inflicted Damage 408 | . 78 . 18 . 265 . 47 Shots 17 | . 2 . . . 13 . 2 Rammed 2 | . 1 . 1 . . . . Targets Rammed 2 | . 1 . 1 . . . . Kicked . | . . . . . . . . Crushed . | . . . . . . . . Highest Temperature 171 | . 171 . 100 . 154 9 48 Average Temperature 43 | . 62 . 33 . 37 5 11 Received Heat Transfer 1787 | . 222 6 54 . 294 375 836 Siege Activations . | . . . . . . . . Robots Corrupted . | . . . . . . . . Combat Hostiles . | . . . . . . . . Parts Fried 13 | . . . . 7 5 1 . Impact Corruptions 24 | . 2 . 1 8 9 4 . Robots Melted 1 | . . . . . . . 1 Combat Hostiles 1 | . . . . . . . 1 Parts Melted 4 | . 1 . . . . 2 1 Heat Transferred 1506 | . 475 . 200 . 350 . 481 Parts Sabotaged . | . . . . . . . . Parts Stolen . | . . . . . . . . Parts Stripped . | . . . . . . . . Power Chain Reactions 7 | . 2 . . . 5 . . Missiles Intercepted . | . . . . . . . . Alert | -11 -10 -9 -9 -8 -8 -7 -6 ------- Run | Scr Mat Mat Min Mat Sto Fac Fac Peak Influence 775 | . 125 41 79 123 775 387 91 Initial 333 | . . 40 15 30 45 333 84 Average 181 | . 79 40 27 42 383 304 46 Maximum Alert Level 3 | . . . . . 3 1 . Low Security (%) 66 | 100 100 100 100 100 22 22 100 Level 1 20 | . . . . . 31 77 . Level 2 11 | . . . . . 38 . . Level 3 1 | . . . . . 6 . . Level 4 . | . . . . . . . . Level 5 . | . . . . . . . . High Security . | . . . . . . . . Max Security . | . . . . . . . . Squads Dispatched 11 | . 2 . 1 . 8 . . Investigation 2 | . 1 . . . 1 . . Extermination . | . . . . . . . . Reinforcement 6 | . 1 . 1 . 4 . . Assault 2 | . . . . . 2 . . Garrison 1 | . . . . . 1 . . Intercept . | . . . . . . . . Searches Triggered . | . . . . . . . . Construction Impeded 2 | . . . 1 . 1 . . Haulers Reinforced . | . . . . . . . . Active Scanning Responses . | . . . . . . . . Cargo Convoy Interrupts . | . . . . . . . . Stealth | -11 -10 -9 -9 -8 -8 -7 -6 --------- Run | Scr Mat Mat Min Mat Sto Fac Fac Distress Signals 5 | . 1 . . 1 3 . . Communications Jammed . | . . . . . . . . Distress Signals . | . . . . . . . . Times Spotted 80 | . 10 3 9 10 36 7 5 Peak Tracking Total 6 | . 3 3 4 6 6 4 4 Tactical Retreats 6 | . 1 . 3 1 1 . . Traps | -11 -10 -9 -9 -8 -8 -7 -6 ------- Run | Scr Mat Mat Min Mat Sto Fac Fac Traps Triggered 8 | . 1 . . . 6 1 . Indirectly 1 | . 1 . . . . . . Trap Hack Attempts . | . . . . . . . . Triggered . | . . . . . . . . Disarmed . | . . . . . . . . Reprogrammed . | . . . . . . . . Reused . | . . . . . . . . Traps Extracted . | . . . . . . . . Installed . | . . . . . . . . Triggered . | . . . . . . . . Machines | -11 -10 -9 -9 -8 -8 -7 -6 ---------- Run | Scr Mat Mat Min Mat Sto Fac Fac Machines Disabled 15 | . 3 . . . 11 . 1 Max in Single Turn 2 | . 2 . . . 2 . 1 Machines Sabotaged . | . . . . . . . . Garrisons Compromised . | . . . . . . . . Overloaded Fab Kills . | . . . . . . . . Hacking | -11 -10 -9 -9 -8 -8 -7 -6 --------- Run | Scr Mat Mat Min Mat Sto Fac Fac Machines Accessed 9 | . 1 1 . 1 4 2 . Terminals 5 | . . 1 . . 3 1 . Fabricators 1 | . . . . . . 1 . Repair Stations 2 | . . . . 1 1 . . Recycling Units 1 | . 1 . . . . . . Scanalyzers . | . . . . . . . . Garrison Access . | . . . . . . . . Total Hacks 21 | . 1 4 . 8 6 2 . Successful 18 | . 1 4 . 8 4 1 . Failed 3 | . . . . . 2 1 . Catastrophic . | . . . . . . . . Database Lockouts . | . . . . . . . . Manual 2 | . . . . . 2 . . Terminals 8 | . . 4 . . 3 1 . Fabricators 1 | . . . . . . 1 . Repair Stations 11 | . . . . 8 3 . . Recycling Units 1 | . 1 . . . . . . Scanalyzers . | . . . . . . . . Garrison Access . | . . . . . . . . Terminal Hacks 6 | . . 4 . . 2 . . Record 4 | . . 4 . . . . . Open Door 2 | . . . . . 2 . . Fabricator Hacks 1 | . . . . . . 1 . Build 1 | . . . . . . 1 . Repair Station Hacks 10 | . . . . 8 2 . . Scan Component 5 | . . . . 4 1 . . Repair 5 | . . . . 4 1 . . Recycling Unit Hacks 1 | . 1 . . . . . . Retrieve Components 1 | . 1 . . . . . . Scanalyzer . | . . . . . . . . Garrison Access Hacks . | . . . . . . . . Unauthorized Hacks . | . . . . . . . . Terminals . | . . . . . . . . Fabricators . | . . . . . . . . Repair Stations . | . . . . . . . . Recycling Units . | . . . . . . . . Scanalyzers . | . . . . . . . . Garrison Access . | . . . . . . . . Data Cores Recovered . | . . . . . . . . Used . | . . . . . . . . Hacking Detections 7 | . . 1 . 1 3 2 . Full Trace Events . | . . . . . . . . Feedback Events . | . . . . . . . . Feedback Blocked . | . . . . . . . . Robot Schematics Acquired . | . . . . . . . . Robots Built . | . . . . . . . . Authchips . | . . . . . . . . Time . | . . . . . . . . Total Robot Build Rating . | . . . . . . . . Part Schematics Acquired . | . . . . . . . . Parts Built 1 | . . . . . . 1 . Authchips . | . . . . . . . . Time 53 | . . . . . . 53 . Total Part Build Rating 6 | . . . . . . 6 . Parts Repaired 5 | . . . . 4 1 . . Time 160 | . . . . 122 38 . . Parts Recycled . | . . . . . . . . Recycled Matter . | . . . . . . . . Retrieved Matter . | . . . . . . . . Retrieved Components 4 | . 4 . . . . . . Parts Scanalyzed . | . . . . . . . . Part Schematics Acquired . | . . . . . . . . Parts Damaged . | . . . . . . . . Bothacking | -11 -10 -9 -9 -8 -8 -7 -6 ------------ Run | Scr Mat Mat Min Mat Sto Fac Fac Used RIF Installer . | . . . . . . . . Robots Hacked . | . . . . . . . . Non-combat . | . . . . . . . . Combat . | . . . . . . . . Robot Hacks Applied . | . . . . . . . . Relay Couplers Released . | . . . . . . . . Fabnet Peak Effective % . | . . . . . . . . Robots Rewired . | . . . . . . . . Allies Hacked . | . . . . . . . . Hacks Repelled . | . . . . . . . . Allies | -11 -10 -9 -9 -8 -8 -7 -6 -------- Run | Scr Mat Mat Min Mat Sto Fac Fac Total Allies 3 | . . . 1 . 2 . . Largest Group 2 | . . . 1 . 2 . . Highest-Rated Group 62 | . . . 31 . 62 . . Highest-Rated Ally 31 | . . . 31 . 31 . . Total Orders . | . . . . . . . . Ally Attacks 39 | . . . 5 . 34 . . Total Damage 470 | . . . 42 . 428 . . Kills 5 | . . . 1 . 4 . . Allies Corrupted . | . . . . . . . . Allies Melted . | . . . . . . . . Intel | -11 -10 -9 -9 -8 -8 -7 -6 ------- Run | Scr Mat Mat Min Mat Sto Fac Fac Robot Analysis Total . | . . . . . . . . Derelict Logs Recovered . | . . . . . . . . Drone Launches . | . . . . . . . . Drone Recoveries . | . . . . . . . . Exploration | -11 -10 -9 -9 -8 -8 -7 -6 ------------- Run | Scr Mat Mat Min Mat Sto Fac Fac Turns Passed 3567 | 46 582 110 359 657 1017 513 283 Spaces Moved 1885 | 44 352 87 163 350 595 278 16 Core 22 | 13 . . . . . . 9 Treads . | . . . . . . . . Legs 9 | . . . . . . 2 7 Wheels 1854 | 31 352 87 163 350 595 276 . Hover . | . . . . . . . . Flight . | . . . . . . . . Fastest Speed 50 | 50 80 120 120 90 113 105 197 Average Speed 127 | 71 123 120 120 119 124 122 873 Slowest Speed 1400 | 80 215 120 120 120 145 215 1400 Overloaded Moves . | . . . . . . . . Propulsion Burnouts . | . . . . . . . . Robots Hopped . | . . . . . . . . Cave-ins Triggered . | . . . . . . . . Exploration Rate (%) 23 | 4 36 14 21 23 77 8 1 Regions Visited 7 Branch Regions 2 Pre-discovered Areas . | . . . . . . . . Known Exits Taken 1 | . . . . . . 1 . Unknown Exits Taken 6 | 1 1 1 1 1 1 . . Scrap Searched 1 | . . . 1 . . . . Spaces Dug . | . . . . . . . . Terrain Destroyed 176 | . 6 . 6 . 156 . 8 Melee . | . . . . . . . . Projectile 7 | . . . 6 . . . 1 AOE 169 | . 6 . . . 156 . 7 Terrain Rammed . | . . . . . . . . Walls Destroyed . | . . . . . . . . Machines Disabled . | . . . . . . . . Actions | -11 -10 -9 -9 -8 -8 -7 -6 --------- Run | Scr Mat Mat Min Mat Sto Fac Fac Total 2732 | 58 436 95 243 568 780 408 144 Wait 382 | . 3 . 40 146 46 56 91 Move 1878 | 43 351 86 162 349 594 277 16 Hop . | . . . . . . . . Pick Up 104 | 10 28 1 5 24 24 12 . Fast Attach . | . . . . . . . . Attach 62 | 5 5 3 2 10 13 12 12 Detach 12 | . . 1 . 5 1 4 1 Swap 45 | . 16 . 2 5 13 9 . Drop 38 | . 4 4 . 15 14 . 1 Fire 114 | . 28 . 31 . 32 . 23 Melee 89 | . . . . 14 37 38 . Ram 2 | . 1 . 1 . . . . Kick . | . . . . . . . . Crush . | . . . . . . . . Escape Stasis 6 | . . . . . 6 . . Rewire . | . . . . . . . . Trap . | . . . . . . . . Miscellaneous . | . . . . . . . . Route ------- -11/Scrapyard -10/Materials -9/Materials -9/Mines -8/Materials -8/Storage -7/Factory -6/Factory History --------- Turn | Location | Event 23 | -11/Scrapyard | Discovered new exit (range 15) 47 | -11/Scrapyard | Entered Materials 302 | -10/Materials | Build established: Mutant 426 | -10/Materials | Discovered new exit (range 3) 629 | -10/Materials | Entered another Materials area 629 | -9/Materials | Evolved 2 slots: Propulsion x1, Utility x1 716 | -9/Materials | Discovered new exit (range 6) 739 | -9/Materials | Entered Mines 742 | -9/Mines | Received a Mining Laser from a helpful Derelict 774 | -9/Mines | Discovered new exit (range 8) 821 | -9/Mines | Excavation squad dispatched 821 | -9/Mines | A large section of the Mines collapsed 1098 | -9/Mines | Entered Materials 1098 | -8/Materials | Evolved 2 slots: Power x1, Propulsion x1 1233 | -8/Materials | Repaired Med. Armor Plating 1269 | -8/Materials | Repaired Huge Storage Unit 1325 | -8/Materials | Repaired Maul 1575 | -8/Materials | Repaired Shield Generator 1610 | -8/Materials | Discovered new exit (range 4) 1755 | -8/Materials | Entered Storage 1939 | -8/Storage | Met a pair of Derelict thieves 2457 | -8/Storage | Garrison activated, responded to threat 2523 | -8/Storage | Destroyed 9 combat bots 2525 | -8/Storage | Lost 5 parts (1p2n1u1w) 2552 | -8/Storage | Discovered new exit (range 16) 2638 | -8/Storage | Repaired Imp. Light Armor Plating 2772 | -8/Storage | Entered Factory 2772 | -7/Factory | Evolved 2 slots: Utility x2 2974 | -7/Factory | Fabricated Imp. Component Analysis Suite? 3222 | -7/Factory | Discovered new exit (range 15) 3283 | -7/Factory | Identified exit to Factory 3285 | -7/Factory | Entered another Factory area 3285 | -6/Factory | Evolved 2 slots: Utility x2 3303 | -6/Factory | Lost 3 parts (1p1n1w) 3395 | -6/Factory | Core integrity fell below 50% 3429 | -6/Factory | Core integrity fell below 20% 3452 | -6/Factory | Lost 16 parts (4n5u7w) 3568 | -6/Factory | Destroyed by H-66 Slayer with Heavy Assault Rifle Last Messages --------------- Critical hit (Burn: +50). Adv. EMP Blaster destroyed. Critical hit (Burn: +37). Terminal disabled. Emergency Access malfunctions. Adv. EMP Blaster destroyed. G-67 Veteran misfires. G-67 Veteran suffers critical hit (Burn). G-67 Veteran critical meltdown. Critical hit (Burn: +37). G-50 Soldier heat spikes uncontrollably. G-50 Soldier heat short circuits Adv. Heat Sink. G-50 Soldier heat damages Hvy. Laser. Broken Adv. Heat Sink melted. G-50 Soldier destroyed. Acquired 26 matter. Acquired 37 matter. The unstable cave ceiling collapses. Acquired 49 matter. Penetrated by Slug. Map ----- +----------------------------------------------------+ | ??????????????????????????????? | | ??????????????????????????????? | | ??????????????????????????????? | | ?????????????????? ?????????? | | ???????????????? ?????????? | | ???????????????+ ?????????? | | ???????????????# #????????? | | ???????????????# #????????? | | ???????????????# #????????? | | ???????????????# #?????##?? | | ???????????????# ######/### | | ???????????????# # # | | ???????????????# # # | | ???????????????# # # | | ???????????????# # # | | ????????######## # # | | ????????# # | | ????????# # ; | | ????????# h [ | | ????????# # | | ????????# | | ????????# | | ????????# | | ????? ##### # ; | | ???? ?????###; ; | | ????? ????????## @ ; | | ????? ???????????# ] # | | ????? ????????????# # | | ?????????????????????# # | | ?????????????????????########## | | ??????????????????????????????? | | ??????????????????????????????? | | ??????????????????????????????? | | ??????????????????????????????? | | ??????????????????????????????? | | ??????????????????????????????? | | ??????????????????????????????? | | ??????????????????????????????? | | ??????????????????????????????? | | ??????????????????????????????? | | ??????????????????????????????? | | ??????????????????????????????? | | ??????????????????????????????? | | ??????????????????????????????? | | ??????????????????????????????? | | ??????????????????????????????? | | ??????????????????????????????? | | ??????????????????????????????? | | ??????????????????????????????? | | ??????????????????????????????? | +----------------------------------------------------+ Best States ------------- Heat Dissipation 37 Energy Generation 23 Energy Capacity 415 Matter Stores 300 Matter Capacity 300 Sight Range 16 Robot Scan Range 15 Terrain Scan Range 14 Terrain Scan Density 10 ECM Strength 1 Armor Coverage 375 Resistance: TH 10 Core Shielding 20 Melee Speed Boost 20 Evasion (%) 50 Recoil Reduction 1 Force Boost 20 Defensive Hacking 10 Authchip Count 1 Item Schematics ----------------- None Robot Schematics ------------------ None Fabricated ------------ Imp. Component Analysis Suite | x1 | -7/Factory | Preloaded Alien Tech Used ----------------- None Achievements -------------- None Challenges ------------ None Game ------ Seed AntimissileMassSword Manual? 0 Play Time 01:19:31 Cumulative 51.9 hours Start 2022.09.23 @ 13:47:56 End 2022.09.23 @ 16:29:26 Sessions 1 Manual Loads 0 Difficulty Rogue Special Mode None Game No. 34 Rogue 34 Adventurer 0 Explorer 0 Win Type - Total 0 Types 0/0/0/0/0/0/0/0/0 Lore% 17 Gallery% 18 Achievement% 16 Wizard Run 0 Options --------- ASCII 0 Keyboard 0 Movement Numpad Keybinds 0 Fullscreen 1 Font 18/SmallcapsGlow Map View 76x50 Tactical HUD 0 Map Filters NONE Filters NONE Steam 1 RUN: 453e7be1-65e2-479d-a150-fb1caf32a9fd